[Event "Romanian Women Championship 2024"]
[Site "Eforie Nord"]
[Date "2024.02.24"]
[Round "1.1"]
[White "Schiopu, Oana-Magdalena"]
[Black "Peptan, Corina-Isabela"]
[Result "1-0"]
[ECO "B23"]
[WhiteElo "1750"]
[BlackElo "2314"]
[Annotator "TA"]
[PlyCount "79"]
[EventDate "2024.02.24"]
[EventType "swiss"]
[EventCountry "ROU"]
[SourceTitle "playchess.com"]
[Source "ChessBase"]
[SourceQuality "1"]
[TimeControl "40/5400+30:900+30"]

{[%evp 12,79,6,-8,-21,-43,-8,-13,-6,-9,0,-57,-45,-96,-92,-98,-107,-121,-71,-70,-71,-108,-34,-35,-18,-74,-72,-102,-42,-98,-87,-84,-94,-102,-100,-108,-98,-187,-122,-134,-125,-209,-122,-120,-105,-100,-27,-35,-43,-52,-41,-124,-74,-91,-31,-137,-81,-71,-52,-54,-64,-71,0,0,29990,29991,29991,29992,29992,29993]} 1. e4 {[%emt 0:00:02]} c5 {[%emt 0:00:05]} 2. Nc3 {[%emt 0:00:06]} Nc6 {[%emt 0:00:16]} 3. Bb5 {[%emt 0:00:26]} g6 {[%emt 0:00:35]} 4. f4 {[%emt 0:00:54]} Bg7 {[%emt 0:00:05]} 5. Nf3 {[%emt 0:00:20]} d6 {[%emt 0:00:27]} 6. O-O {[%emt 0:01:37]} Bd7 {[%emt 0:00:13]} 7. Kh1 {[%emt 0:02:52]} e6 {[%emt 0:03:59]} 8. Ne2 {[%emt 0:07:54]} Nge7 {[%emt 0:06:59]} 9. c3 {[%emt 0:02:21]} O-O {[%emt 0:01:35] Die Stellung ist ausgeglichen.} 10. d4 {[%emt 0:01:15]} cxd4 {[%emt 0:00:36]} 11. cxd4 {[%emt 0:00:22]} (11. Nexd4 $11 a5 12. Qe2) 11... d5 $15 {[%emt 0:00:07]} 12. e5 {[%emt 0:02:32] [#]} (12. Bxc6 $15 Bxc6 13. e5) 12... Nxe5 $1 $17 {[%emt 0:16:09]} 13. fxe5 {[%emt 0:07:27]} (13. dxe5 Bxb5) 13... Bxb5 {[%emt 0:00:05]} 14. Bg5 {[%emt 0:00:22]} f6 {[%emt 0:10:21]} (14... h6 $142 15. Bc1 Qb6) 15. exf6 {[%emt 0:01:02]} Bxf6 {[%emt 0:00:01]} 16. Bh6 {[%emt 0:00:16]} Bg7 {[%emt 0:07:37]} (16... Rf7 $17 {...Nf5 ist eine echte Drohung.} 17. Ng5 Bxg5 18. Bxg5 Rxf1+ 19. Qxf1 h6) 17. Bxg7 $15 {[%emt 0:01:48]} Kxg7 {[%emt 0:00:02]} 18. Ng5 {[%emt 0:00:21]} (18. Re1 $11) 18... Qd6 $17 {[%emt 0:00:15]} 19. a4 {[%emt 0:04:13]} Bd7 {[%emt 0:04:00]} (19... Rxf1+ 20. Qxf1 Rf8 21. Qe1 $15) (19... Ba6 $17 20. Re1 Rae8) 20. Ng3 {[%emt 0:02:52]} (20. Qb3 $15) 20... Rxf1+ {[%emt 0:08:09]} 21. Qxf1 {[%emt 0:00:24][%cal Og3h5] jetzt Nh5+! und aus.} Rf8 {[%emt 0:00:02]} 22. Qe2 {[%emt 0:00:44]} Nc6 {[%emt 0:10:31]} 23. Nf3 {[%emt 0:10:06]} Qb4 {[%emt 0:04:36]} 24. h4 {[%emt 0:18:11]} (24. Qd3 $17) 24... Qd6 {[%emt 0:00:17]} (24... Nxd4 $2 25. Qe5+ Kg8 26. Nxd4 $18) ({Günstiger ist} 24... Qe7 $19 {[%cal Oe6e5] Droht ...e5! und aus.} 25. Rd1 e5 26. Nxe5 Nxe5 (26... Qxh4+ $2 27. Kg1 $19) 27. Qxe5+ Qxe5 28. dxe5 Bxa4) 25. Nf1 {[%emt 0:00:24][%cal Bg3f1,Bf1h2,Bh2g4][%mdl 32]} Rf4 {[%emt 0:01:15]} 26. g3 {[%emt 0:03:33]} (26. Qd2 $17 {war angesagt.}) 26... Rf6 {[%emt 0:02:15]} (26... Nxd4 27. Qe5+ Qxe5 28. Nxe5 $17) (26... Re4 $19 27. Qf2 Qf8) 27. Kg2 {[%emt 0:00:40]} Qb4 {[%emt 0:02:24][%cal Of6f3] Und jetzt ...Rxf3! wäre schön.} 28. Qd2 {[%emt 0:02:35]} Qf8 {[%emt 0:05:52]} (28... Rf8 $17 29. Qxb4 Nxb4) 29. N1h2 $11 {[%emt 0:02:16]} Rf5 {[%emt 0:01:44]} 30. Rf1 {[%emt 0:00:55]} Qb4 {[%emt 0:02:30]} 31. Qe3 {[%emt 0:01:21] [#]} (31. Qxb4 $15 Nxb4 32. Rc1 Bxa4 33. Ra1) 31... Qxb2+ {[%emt 0:02:36]} (31... e5 $142 $1 {[%cal Re5e4] ...e4 wäre nun fies.} 32. dxe5 Nxe5 (32... Qxb2+ 33. Rf2 $19) (32... Qxa4 33. g4 $15) 33. Qxa7 Nc6 (33... Qxa4 34. Qxb7 Qe4 35. Kg1 $11) (33... Qxb2+ 34. Rf2 $17)) 32. Rf2 $17 {[%emt 0:00:05]} Qb1 {[%emt 0:00:17]} (32... Qb4 $17 33. Ng4 e5 (33... Qxa4 $2 34. Qh6+ Kf7 35. Ne3 $18) 34. Ngxe5 Nxe5 35. Nxe5 Rxf2+ (35... Bxa4 36. Rxf5 gxf5 37. Qg5+ Kf8 38. Qxf5+ Ke7 39. Qxh7+ Kd6 40. Qg6+ Kc7 41. Qf7+ Kb6 42. Qxd5 $16) (35... Qxa4 36. Rb2 $11) 36. Qxf2 Be6 (36... Qxa4 $2 37. Qf7+ Kh6 38. Qf8+ Kh5 39. Qf3+ Kh6 40. g4 $18)) 33. Re2 {[%emt 0:02:01]} (33. g4 $1 $15 Rf6 34. Ng5) 33... Qb4 {[%emt 0:02:29]} (33... Rf8 $142 {Zielt auf ...Qf5 ab.} 34. Qa3 Bc8) 34. Ng4 {[%emt 0:00:47]} Qf8 {[%emt 0:00:02][%cal Of5f3] Droht stark ...Rxf3!} ({Nicht} 34... Qxa4 35. Qh6+ Kf7 36. Qxh7+ Ke8 37. Qg8+ (37. Qxg6+ Kd8 $16) 37... Ke7 38. Nfe5 (38. Qxg6 $2 {verliert.} Rxf3 39. Kxf3 Nxd4+ 40. Kf2 Nxe2 $19) 38... Nxd4 39. Rb2 $16 (39. Nxg6+ Kd6 $17)) 35. Rf2 {[%emt 0:00:23]} Qe7 {[%emt 0:06:43]} 36. Rc2 {[%emt 0:06:41]} Rf8 {[%emt 0:02:13]} ({Besser ist} 36... a5 $17) 37. Nfe5 $11 {[%emt 0:01:16] Und Nxc6 würde nun gewinnen.} Nxe5 {[%emt 0:01:01][%mdl 8192]} (37... Kg8 $11) 38. Qxe5+ {[%emt 0:00:20] Weiß setzt Matt.} Kf7 {[%emt 0:00:01]} 39. Rf2+ {[%emt 0:00:19]} Ke8 {[%emt 0:00:16]} 40. Qb8+ {[%emt 0:00:00] Weiß hat die Chance genutzt.   Gewichteter Fehlerwert: Weiß=0.26 (präzise) /Schwarz=0.47.  Verlustzug:     	---       	Schwarz=1     Fehler:       	Weiß=8     	Schwarz=10    Ungenau:       	Weiß=2     	Schwarz=1     OK:         	Weiß=9     	Schwarz=9     Bester:       	Weiß=3     	Schwarz=1     Brilliant:      	---       	Schwarz=1} 1-0

[Event "Romanian Women Championship 2024"]
[Site "Eforie Nord"]
[Date "2024.02.24"]
[Round "1.2"]
[White "Sandu, Mihaela"]
[Black "Hoanca, Alexia-Ioana"]
[Result "1-0"]
[ECO "B12"]
[WhiteElo "2265"]
[BlackElo "1748"]
[Annotator "RC"]
[PlyCount "67"]
[EventDate "2024.02.24"]
[EventType "swiss"]
[EventCountry "ROU"]
[SourceTitle "playchess.com"]
[Source "ChessBase"]
[SourceQuality "1"]
[TimeControl "40/5400+30:900+30"]

1. e4 {[%emt 0:00:04]} c6 {[%emt 0:00:08]} 2. d4 {[%emt 0:00:44]} d5 {[%emt 0:00:07]} 3. e5 {[%emt 0:00:04]} Bf5 {[%emt 0:00:10]} 4. h4 {[%emt 0:00:11]} h6 {[%emt 0:00:28]} 5. g4 {[%emt 0:00:39]} Be4 {[%emt 0:00:54]} 6. f3 {[%emt 0:00:26]} Bh7 {[%emt 0:00:11]} 7. e6 {[%emt 0:03:46]} Nf6 {[%emt 0:00:20]} 8. Ne2 {[%emt 0:16:08]} fxe6 {[%emt 0:01:13]} 9. Nf4 {[%emt 0:02:21]} Qd6 {[%emt 0:01:11]} 10. Qe2 {[%emt 0:04:03]} Kf7 {[%emt 0:13:36]} 11. g5 {[%emt 0:16:02]} Nfd7 {[%emt 0:10:50]} 12. g6+ {[%emt 0:15:58]} Bxg6 {[%emt 0:06:03]} 13. h5 {[%emt 0:11:08]} Bf5 {[%emt 0:04:41]} 14. Bh3 {[%emt 0:00:04]} c5 {[%emt 0:06:34]} 15. dxc5 {[%emt 0:04:50]} Nxc5 {[%emt 0:05:57]} 16. Nc3 {[%emt 0:05:56]} Bxh3 {[%emt 0:16:12]} 17. Rxh3 {[%emt 0:00:11]} Nbd7 {[%emt 0:11:40]} 18. Ng6 {[%emt 0:01:06]} Rg8 {[%emt 0:01:12]} 19. Bf4 {[%emt 0:00:26]} e5 {[%emt 0:05:24]} 20. Bxe5 {[%emt 0:00:36]} Qe6 {[%emt 0:00:20]} 21. Rh1 {[%emt 0:01:55]} Rd8 {[%emt 0:03:10]} 22. O-O-O {[%emt 0:02:41]} Nf6 {[%emt 0:01:07]} 23. Qf2 {[%emt 0:06:39]} Ncd7 {[%emt 0:03:21]} 24. Bd4 {[%emt 0:00:17]} Qf5 {[%emt 0:04:05]} 25. Bxf6 {[%emt 0:02:42]} Nxf6 {[%emt 0:00:19]} 26. Rde1 {[%emt 0:00:57]} Nxh5 {[%emt 0:01:57]} 27. Ne5+ {[%emt 0:00:04]} Ke8 {[%emt 0:00:23]} 28. Qxa7 {[%emt 0:00:05]} e6 {[%emt 0:01:34]} 29. Qxb7 {[%emt 0:00:21]} Bd6 {[%emt 0:00:31]} 30. Nc6 {[%emt 0:00:35]} Qg5+ {[%emt 0:01:03]} 31. Kb1 {[%emt 0:00:14]} Nf4 {[%emt 0:00:03]} 32. Rhg1 {[%emt 0:00:43]} Qf6 {[%emt 0:00:24]} 33. Nxd8 {[%emt 0:00:07]} Kxd8 {[%emt 0:01:11]} 34. Qa8+ {[%emt 0:00:14]} 1-0

[Event "Romanian Women Championship 2024"]
[Site "Eforie Nord"]
[Date "2024.02.24"]
[Round "1.3"]
[White "Aldea, Maria-Antonia"]
[Black "Cosma, Elena-Luminita"]
[Result "1/2-1/2"]
[ECO "A46"]
[WhiteElo "1726"]
[BlackElo "2236"]
[Annotator "TA"]
[PlyCount "83"]
[EventDate "2024.02.24"]
[EventType "swiss"]
[EventCountry "ROU"]
[SourceTitle "playchess.com"]
[Source "ChessBase"]
[SourceQuality "1"]
[TimeControl "40/5400+30:900+30"]

{[%evp 9,83,8,17,10,6,7,0,0,5,-28,-4,-32,-25,-37,-26,-21,-23,-29,-31,-41,-25,-47,-39,-44,-32,-39,-32,-96,-47,-45,-33,-94,-49,-72,60,-2,6,8,6,-13,12,0,0,-10,22,-35,0,-3,-6,-6,-6,-8,0,-4,-16,-35,-54,-53,-56,-63,-42,-52,-21,-56,-37,-31,-10,-13,-20,-18,-14,-9,-5,-19,-10,-16]} 1. Nf3 {[%emt 0:00:03]} d5 {[%emt 0:00:06]} 2. g3 {[%emt 0:00:05]} Nf6 {[%emt 0:00:39]} 3. Bg2 {[%emt 0:00:08]} e6 {[%emt 0:01:08]} 4. d4 {[%emt 0:00:08]} b5 {[%emt 0:00:06]} 5. a4 {[%emt 0:00:16]} b4 {[%emt 0:00:05] [#]} 6. c4 $1 {[%emt 0:00:11]} bxc3 {[%emt 0:00:55]} 7. Nxc3 {[%emt 0:00:11]} a5 {[%emt 0:01:44]} 8. Bf4 {[%emt 0:01:11]} Bd6 {[%emt 0:01:34]} 9. Rc1 {[%emt 0:03:37][%cal Ba1c1,Bc1c2,Bc2d2][%mdl 32]} O-O {[%emt 0:03:38]} 10. O-O {[%emt 0:00:28]} Bxf4 {[%emt 0:08:22]} 11. gxf4 {[%emt 0:00:07]} Ba6 {[%emt 0:00:05]} 12. Re1 {[%emt 0:01:41]} c6 {[%emt 0:01:29]} 13. Ne5 {[%emt 0:05:35]} Qb6 {[%emt 0:04:18]} 14. Rc2 {[%emt 0:02:57]} Ra7 {[%emt 0:01:54]} 15. Kh1 {[%emt 0:02:20]} Rc7 {[%emt 0:03:43]} 16. e3 {[%emt 0:04:56]} c5 {[%emt 0:07:42]} 17. dxc5 {[%emt 0:01:32]} Rxc5 {[%emt 0:02:38]} 18. Rg1 {[%emt 0:07:36]} (18. e4 $15) 18... Rcc8 {[%emt 0:05:33]} ({Günstiger ist} 18... Nc6 $17 19. Nxc6 Rxc6 (19... Qxc6 20. f5 $17)) 19. Rd2 $15 {[%emt 0:06:58]} Rcd8 {[%emt 0:12:01]} 20. Bf3 {[%emt 0:02:49]} (20. e4 $15) 20... g6 {[%emt 0:10:23]} 21. h4 {[%emt 0:02:26] [#]} d4 {[%emt 0:02:01]} 22. exd4 {[%emt 0:02:17]} (22. Rxd4 $14 Rxd4 23. Qxd4 Qxd4 24. exd4) 22... Bb7 $11 {[%emt 0:00:46]} 23. Bxb7 {[%emt 0:14:00]} Qxb7+ {[%emt 0:00:43]} 24. Kh2 {[%emt 0:00:16]} (24. Qf3 {vereinfacht} Qxf3+ 25. Nxf3 Nh5 26. Rgd1) 24... Kh8 {[%emt 0:01:43][%mdl 1024] Schwarz hat Kompensation.} 25. Qe2 {[%emt 0:07:48]} Nh5 {[%emt 0:03:24]} 26. Qe3 {[%emt 0:01:30]} Qe7 {[%emt 0:02:23]} 27. Kh3 {[%emt 0:04:23]} (27. Nf3 $11) 27... Qf6 {[%emt 0:08:18]} (27... f6 {vereinfacht} 28. Nd3 Nc6 29. d5 exd5 30. Qxe7 Nxe7 31. Ne2 Rc8) 28. Ne2 {[%emt 0:02:16] Aktives Gegenspiel!} Nd7 {[%emt 0:05:11]} 29. Nxd7 {[%emt 0:05:36]} Rxd7 {[%emt 0:00:05]} 30. Rg5 {[%emt 0:02:21]} (30. Qe5 {vereinfacht} Qxe5 31. fxe5 Rb8 32. Rb1) 30... Qd8 {[%emt 0:05:59]} 31. Qc3 {[%emt 0:03:52]} Rd5 {[%emt 0:00:53]} 32. Rxd5 {[%emt 0:08:13]} Qxd5 {[%emt 0:01:19]} 33. Kh2 {[%emt 0:00:01] Es drohte Qh1+} Kg8 {[%emt 0:00:32]} 34. Qe3 {[%emt 0:03:03]} Qd8 {[%emt 0:01:38]} 35. Kh3 {[%emt 0:00:45]} Qd7 {[%emt 0:00:06]} 36. b3 {[%emt 0:02:42]} e5+ {[%emt 0:00:35]} 37. Kh2 exf4 {[%emt 0:00:07]} 38. Qf3 {[%emt 0:01:48] Die Stellung ist ausgeglichen.} Qe7 {[%emt 0:00:55]} 39. Kh3 {[%emt 0:01:16]} Qe6+ {[%emt 0:02:35]} 40. Kg2 {[%emt 0:00:00]} Qf6 {[%emt 0:00:00]} 41. Kh3 {[%emt 0:02:04]} Qf5+ {[%emt 0:03:53]} 42. Kg2 {[%emt 0:03:51] Gewichteter Fehlerwert: Weiß=0.14 (sehr präzise) /Schwarz=0.17 (sehr präzise) .  Fehler:       	Weiß=4     	Schwarz=2     Ungenau:       	Weiß=3     	Schwarz=4     OK:         	Weiß=13    	Schwarz=11    Bester:       	Weiß=1     	---} 1/2-1/2

[Event "Romanian Women Championship 2024"]
[Site "Eforie Nord"]
[Date "2024.02.24"]
[Round "1.4"]
[White "Lehaci, Miruna-Daria"]
[Black "Sariteanu, Sabina"]
[Result "1-0"]
[ECO "B80"]
[WhiteElo "2227"]
[BlackElo "1700"]
[Annotator "TA"]
[PlyCount "71"]
[EventDate "2024.02.24"]
[EventType "swiss"]
[EventCountry "ROU"]
[SourceTitle "playchess.com"]
[Source "ChessBase"]
[SourceQuality "1"]
[TimeControl "40/5400+30:900+30"]

{[%evp 16,71,83,80,85,78,105,106,80,58,118,108,115,123,155,162,159,159,158,150,188,88,138,122,135,-5,28,-49,-33,-54,-14,0,0,0,0,0,365,369,369,19,342,0,0,0,367,332,5354,5354,5354,5292,5285,5277,5277,573,5273,5261,1747,1729]} 1. e4 {[%emt 0:00:03]} c5 {[%emt 0:00:07]} 2. Nf3 {[%emt 0:00:06]} d6 {[%emt 0:00:06]} 3. d4 {[%emt 0:00:06]} cxd4 {[%emt 0:00:07]} 4. Nxd4 {[%emt 0:00:04]} Nf6 {[%emt 0:00:10]} 5. Nc3 {[%emt 0:00:06]} a6 {[%emt 0:00:06]} 6. Be3 {[%emt 0:00:15]} Nc6 {[%emt 0:01:39]} 7. f3 {[%emt 0:03:52]} e6 {[%emt 0:02:27]} 8. Qd2 {[%emt 0:04:16]} Bd7 {[%emt 0:02:30]} 9. g4 {[%emt 0:02:14][%cal Bg2g4,Bg4g5][%mdl 32] White is more active.} b5 {[%emt 0:00:52][%cal Bb7b5,Bb5b4][%mdl 32]} 10. g5 {[%emt 0:07:30]} Nh5 {[%emt 0:00:07]} 11. Nxc6 {[%emt 0:11:03]} Bxc6 {[%emt 0:00:08] White is better.} 12. Ne2 {[%emt 0:00:12]} Be7 {[%emt 0:07:48] [#]} (12... Bb7 $14) 13. O-O-O $1 $16 {[%emt 0:09:21]} b4 {[%emt 0:06:18]} 14. Kb1 {[%emt 0:09:17]} O-O {[%emt 0:02:06]} 15. Ng3 {[%emt 0:01:58]} (15. Qxb4 d5 16. Bc5 Bxc5 17. Qxc5 Bb7 $16) 15... g6 {[%emt 0:03:18][%cal Bg7g6,Bg6h5][%mdl 32]} 16. Nxh5 {[%emt 0:00:52]} gxh5 {[%emt 0:00:06]} 17. Rg1 {[%emt 0:05:56]} d5 {[%emt 0:01:42]} 18. e5 {[%emt 0:03:26]} (18. Bd4 $18 {has better winning chances.}) 18... d4 {[%emt 0:00:19]} 19. Bxd4 {[%emt 0:00:35][%cal Of1d3] Black must now prevent Bd3!} (19. Qxd4 Bc5 20. Qxc5 (20. Qxd8 $2 Raxd8 $19) 20... Qxd1+ 21. Bc1 Qd5 (21... Qxf3 22. Bg2 $14) (21... Bxf3 $2 22. Bd3 $18) 22. Qxd5 Bxd5 $17) 19... Bxf3 {[%emt 0:00:08] [#]} 20. Be2 {[%emt 0:00:49]} (20. Bd3 $1 $16 Kg7 (20... Qxd4 $2 21. Bxh7+ Kxh7 22. Qxd4 $18) (20... Bxd1 $2 21. Qxd1 Kg7 22. Qxh5 $18) 21. Be3 (21. Be2 Be4 $11)) 20... Qd5 {[%emt 0:01:35]} 21. Rg3 {[%emt 0:02:45]} (21. Qe3 $11 Be4 22. Bxh5) 21... Be4 $1 $15 {[%emt 0:02:03]} 22. Qe3 {[%emt 0:11:18]} (22. Bxh5 Rac8 23. Rc1 Rfd8 $19 (23... Rc4 24. Be3 $17)) 22... Rfd8 {[%emt 0:02:40] aiming for ...Rac8.} (22... Rac8 $5 23. Bd3 Bg6 $17) 23. Bf3 {[%emt 0:02:13]} (23. Bxh5 $2 Rac8 24. Ka1 Bxc2 $19 (24... Rxc2 25. Rgg1 $17)) 23... Bxf3 {[%emt 0:02:10]} 24. Rxf3 {[%emt 0:01:24]} Bc5 {[%emt 0:00:29][%cal Rc5d4]} 25. Qf4 $36 {[%emt 0:01:21][%mdl 2048] White has good play.} Bxd4 $4 {[%emt 0:20:57][%mdl 8192]} (25... Qb7 $11 {and Black has nothing to worry.} 26. Rfd3 Bxd4 27. Rxd4 Rxd4 28. Qxd4 Qf3) 26. Qxf7+ $18 {[%emt 0:13:33]} Kh8 {[%emt 0:00:07]} 27. Qf6+ {[%emt 0:00:02]} Kg8 {[%emt 0:00:09]} 28. Qf7+ {[%emt 0:00:06]} ({Don't blunder} 28. Rf4 $2 Qxe5 29. a3 (29. Rfxd4 $2 Rxd4 30. Rf1 Qxf6 $19) 29... Rf8 (29... Qxf6 $2 30. gxf6 e5 31. Rf5 $19) 30. Qxe5 Bxe5 $19) (28. g6 $18 {White wants to mate with Qf7+.} Rd7 29. Rf4 Qxe5 30. gxh7+ Kxh7 (30... Rxh7 $2 31. Rg1+ Bxg1 32. Qxe5 $18) 31. Qxe5 (31. Rdxd4 $2 Qe1+) 31... Bxe5 32. Rxd7+ Kg6 33. Rxb4 Bxh2 34. Rb6) 28... Kh8 $11 {[%emt 0:00:11]} 29. Qf6+ {[%emt 0:00:02][%mdl 8192]} (29. g6 $11 hxg6 30. Qf6+ Kh7 31. Qf7+ Kh6 32. Qf4+ Kg7 33. Qf7+ Kh8 34. Qf6+ Kh7 35. Qf7+ Kh6 36. Qf4+ Kh7 37. Qf7+) 29... Kg8 $18 {[%emt 0:00:18] ...Rf8 is the strong threat.} 30. g6 {[%emt 0:00:57]} ({Not} 30. Rf4 $2 Qxe5 31. a3 (31. Rfxd4 $2 Rxd4 32. Rf1 Qxf6 $19) 31... b3 (31... Qxf6 $2 32. gxf6 e5 33. Rf5 $19) (31... Rf8 $2 32. Qxe5 Bxe5 33. Rxb4 $19) 32. cxb3 Qxf6 33. gxf6 Bxf6 34. Rxd8+ Bxd8 $19) 30... Rf8 {[%emt 0:04:38] Dodges Qf7+} (30... Rd7) 31. gxh7+ {[%emt 0:00:31] White is clearly winning.} Kxh7 {[%emt 0:00:06]} 32. Qe7+ {[%emt 0:00:09]} (32. Qxf8 $2 {is the wrong capture.} Rxf8 33. Rxf8 Qxe5 34. Rf7+ Kh8 $19) 32... Kh8 {[%emt 0:03:59]} 33. Rxf8+ {[%emt 0:00:10]} Rxf8 {[%emt 0:00:07]} 34. Qxf8+ {[%emt 0:00:03]} Kh7 {[%emt 0:00:07]} 35. Rf1 {[%emt 0:00:57]} Qxe5 {[%emt 0:01:05]} 36. Rf7+ {[%emt 0:00:07] Weighted Error Value: White=0.28 (precise) /Black=0.54.  Loses game:     	---       	Black=3      Missed win:     	White=1     	---        Mistake:       	White=4     	Black=3      Inaccurate:     	---       	Black=3      OK:         	White=8     	Black=3      Best:        	White=3     	Black=2      Strong:       	White=1     	Black=1} 1-0

[Event "Romanian Women Championship 2024"]
[Site "Eforie Nord"]
[Date "2024.02.24"]
[Round "1.5"]
[White "Chicarosie, Ioana-Bianca"]
[Black "Ciolacu, Alessia-Mihaela"]
[Result "1/2-1/2"]
[ECO "D00"]
[WhiteElo "1705"]
[BlackElo "2175"]
[Annotator "RC"]
[PlyCount "84"]
[EventDate "2024.02.24"]
[EventType "swiss"]
[EventCountry "ROU"]
[SourceTitle "playchess.com"]
[Source "ChessBase"]
[SourceQuality "1"]
[TimeControl "40/5400+30:900+30"]

1. d4 {[%emt 0:00:03]} Nf6 {[%emt 0:00:16]} 2. Bg5 {[%emt 0:00:06]} d5 {[%emt 0:05:04]} 3. Bxf6 {[%emt 0:01:51]} gxf6 {[%emt 0:00:54]} 4. e3 {[%emt 0:00:46]} c5 {[%emt 0:11:40]} 5. c3 {[%emt 0:17:45]} Qb6 {[%emt 0:02:33]} 6. Qb3 {[%emt 0:04:55]} Nc6 {[%emt 0:11:35]} 7. Nd2 {[%emt 0:02:51]} e6 {[%emt 0:04:43]} 8. Ngf3 {[%emt 0:01:03]} Qc7 {[%emt 0:03:28]} 9. g3 {[%emt 0:01:19]} c4 {[%emt 0:06:35]} 10. Qc2 {[%emt 0:01:52]} f5 {[%emt 0:01:59]} 11. b3 {[%emt 0:03:36]} b5 {[%emt 0:01:39]} 12. a4 {[%emt 0:20:36]} cxb3 {[%emt 0:19:12]} 13. Qxb3 {[%emt 0:08:22]} bxa4 {[%emt 0:02:15]} 14. Qxa4 {[%emt 0:01:03]} Bd7 {[%emt 0:01:03]} 15. Bb5 {[%emt 0:02:01]} a6 {[%emt 0:01:44]} 16. Qa2 {[%emt 0:02:16]} Bd6 {[%emt 0:02:22]} 17. O-O {[%emt 0:02:17]} Ke7 {[%emt 0:03:44]} 18. Ba4 {[%emt 0:02:52]} h5 {[%emt 0:01:11]} 19. Nh4 {[%emt 0:01:49]} Rhg8 {[%emt 0:01:52]} 20. f4 {[%emt 0:01:36]} Qa7 {[%emt 0:10:03]} 21. Kf2 {[%emt 0:05:22]} Rg4 {[%emt 0:02:26]} 22. Bd1 {[%emt 0:00:49]} a5 {[%emt 0:01:03]} 23. Bxg4 {[%emt 0:04:40]} hxg4 {[%emt 0:00:07]} 24. h3 {[%emt 0:00:57]} gxh3 {[%emt 0:03:19]} 25. Rh1 {[%emt 0:01:10]} a4 {[%emt 0:00:09]} 26. Nhf3 {[%emt 0:00:40]} Qa5 {[%emt 0:01:50]} 27. Qc2 {[%emt 0:03:09]} Na7 {[%emt 0:00:30]} 28. Ne5 {[%emt 0:01:15]} Be8 {[%emt 0:00:27]} 29. Rhb1 {[%emt 0:02:56]} Rc8 {[%emt 0:00:35]} 30. Rb7+ {[%emt 0:02:50]} Kf8 {[%emt 0:00:07]} 31. Nd7+ {[%emt 0:00:26]} Bxd7 {[%emt 0:00:52]} 32. Rxd7 {[%emt 0:00:02]} Rxc3 {[%emt 0:00:36]} 33. Qxa4 {[%emt 0:01:47]} Qxa4 {[%emt 0:00:32]} 34. Rxa4 {[%emt 0:00:04]} Nb5 {[%emt 0:00:21]} 35. Ra8+ {[%emt 0:01:09]} Kg7 {[%emt 0:00:08]} 36. Ra5 {[%emt 0:00:36]} Rc2 {[%emt 0:00:14]} 37. Rxb5 {[%emt 0:00:28]} Rxd2+ {[%emt 0:00:57]} 38. Kg1 {[%emt 0:00:03]} Ba3 {[%emt 0:00:44]} 39. Rbb7 {[%emt 0:01:30]} Rg2+ {[%emt 0:00:34]} 40. Kh1 {[%emt 0:00:00]} Rxg3 {[%emt 0:00:00]} 41. Rxf7+ {[%emt 0:00:44]} Kg8 {[%emt 0:02:19]} 42. Rfc7 {[%emt 0:02:24]} Bf8 {[%emt 0:03:41]} 1/2-1/2